bitfinex/quotes_BTCUSD_20220405
["timestamp","ask_amount","ask_price","bid_price","bid_amount"]
[1649153581362,0.00055986,46604.0,46602.0,0.17639865]
[1649153581770,0.25,46607.0,46601.0,0.7099671]
[1649153581862,0.25,46607.0,46602.0,0.17639865]
[1649153582010,0.00055985,46605.0,46602.0,0.17639865]
[1649153582111,0.00055985,46605.0,46602.0,0.17439865]
[1649153582540,0.00055985,46605.0,46603.0,0.5]
[1649153582993,0.01073,46609.0,46603.0,0.5]
[1649153583342,0.00055759,46606.0,46603.0,0.5]
[1649153583445,0.00055759,46606.0,46603.0,0.553626]
[1649153583843,0.00055759,46606.0,46604.0,0.321196]
[1649153583942,0.00055759,46606.0,46605.0,0.5]
[1649153584145,0.00055759,46606.0,46605.0,0.821196]
[1649153584246,0.2,46610.0,46605.0,0.821196]
[1649153584347,0.2,46610.0,46605.0,0.5]
[1649153584444,0.00055758,46608.0,46605.0,0.5]
[1649153584543,0.00055758,46608.0,46605.0,0.553624]
[1649153584746,0.00055758,46608.0,46607.0,0.321196]
[1649153584847,0.00055758,46608.0,46605.0,0.553624]
[1649153584944,0.00055758,46608.0,46606.0,0.321196]
[1649153585047,0.00055758,46608.0,46607.0,0.5]
[1649153585447,0.25,46613.0,46607.0,0.5]
[1649153585697,0.00055757,46610.0,46607.0,0.5]
[1649153586393,0.00055757,46610.0,46608.0,0.321196]
[1649153586496,0.00055757,46610.0,46609.0,0.821196]
[1649153586595,0.01073,46616.0,46609.0,0.821196]
[1649153586696,0.01073,46616.0,46610.0,0.621196]
[1649153586798,0.2,46616.0,46610.0,0.3]
[1649153586897,0.01073,46618.0,46610.0,0.3]
[1649153586898,0.0129605,46618.0,46611.0,0.0428]
[1649153586997,0.05,46616.0,46611.0,0.0428]
[1649153587094,0.0129605,46618.0,46611.0,0.0428]
[1649153587395,0.0129605,46618.0,46612.0,0.37481]
[1649153587496,0.0022305,46618.0,46613.0,0.8]
[1649153587597,0.0022305,46618.0,46614.0,0.321196]
[1649153587696,0.0022305,46618.0,46613.0,0.8428]
[1649153587795,0.0079505,46624.0,46613.0,0.896413]
[1649153588198,0.00055766,46618.0,46613.0,0.896413]
[1649153588498,0.00055766,46618.0,46614.0,0.5970929]
[1649153588599,0.00055766,46618.0,46615.0,0.5]
[1649153588701,0.00055766,46618.0,46616.0,0.374806]
[1649153588801,0.00055766,46618.0,46616.0,0.05361]
[1649153588905,0.00055766,46618.0,46617.0,0.0428]
[1649153589001,0.0079505,46624.0,46617.0,0.0428]
[1649153589104,0.0079505,46624.0,46617.0,0.3428]
[1649153589604,0.0079505,46624.0,46618.0,0.5]
[1649153589837,0.0079505,46624.0,46618.0,0.5428]
[1649153590743,0.0079505,46624.0,46618.0,0.5433962]
[1649153591249,0.23719745,46625.0,46618.0,0.5433962]
[1649153591345,0.01072,46624.0,46618.0,0.5433962]
[1649153591648,0.01072,46624.0,46620.0,0.00163288]
[1649153591749,0.01095095,46624.0,46621.0,0.5]
[1649153591853,0.00023095,46624.0,46621.0,0.5]
[1649153592152,0.00023095,46624.0,46621.0,0.553608]
[1649153592255,0.00023095,46624.0,46622.0,0.3]
[1649153592448,0.00023095,46624.0,46621.0,0.553608]
[1649153592652,0.01072,46627.0,46621.0,0.553608]
[1649153592747,0.05360978,46628.0,46621.0,0.553608]
[1649153592849,0.2,46625.0,46621.0,0.553608]
[1649153592948,0.00023095,46625.0,46621.0,0.553608]
[1649153593298,0.20023095,46625.0,46621.0,0.553608]
[1649153593398,0.20023095,46625.0,46621.0,0.603608]
[1649153593539,0.25023095,46625.0,46621.0,0.603608]
[1649153593841,0.25023095,46625.0,46622.0,0.3]
[1649153593842,0.05,46625.0,46622.0,0.3]
[1649153593945,0.05,46627.0,46623.0,0.50325503]
[1649153594141,0.00059665,46625.0,46624.0,0.363996]
[1649153594442,0.00059665,46625.0,46624.0,0.0428]
[1649153594794,0.00059665,46625.0,46624.0,0.15619705]
[1649153594894,0.00059665,46625.0,46624.0,0.0428]
[1649153594996,0.00059665,46625.0,46624.0,0.096401]
[1649153595093,0.01072,46630.0,46624.0,0.596401]
[1649153595194,0.01072,46630.0,46624.0,0.896401]
[1649153595298,0.00059664,46627.0,46625.0,0.107196]
[1649153595493,0.00059664,46627.0,46625.0,0.199996]
[1649153595894,0.00059664,46627.0,46626.0,0.01084638]
[1649153596195,0.00059664,46627.0,46626.0,0.5]
[1649153596298,0.01072,46630.0,46626.0,0.5]
[1649153596399,0.002,46631.0,46626.0,0.5]
[1649153596497,0.00059662,46629.0,46626.0,0.5]
[1649153597096,0.00059662,46629.0,46627.0,0.353596]
[1649153597200,0.00059662,46629.0,46628.0,0.3]
[1649153597446,0.002,46631.0,46628.0,0.3]
[1649153597548,0.002,46631.0,46628.0,0.407188]
[1649153597744,0.0025966,46631.0,46628.0,0.407188]
[1649153597944,0.0025966,46631.0,46630.0,0.28274316]
[1649153598045,0.0025966,46631.0,46630.0,1.63363107]
[1649153598651,0.002,46631.0,46630.0,1.63363107]
[1649153598745,0.002,46631.0,46630.0,1.67643107]
[1649153599150,0.00046445,46633.0,46630.0,1.68727641]
[1649153599252,0.00046445,46633.0,46632.0,0.01084534]
[1649153599352,0.00046445,46633.0,46632.0,0.51084534]
[1649153599550,0.00046445,46633.0,46632.0,0.55364534]
[1649153599649,0.00046445,46633.0,46632.0,0.5428]
[1649153599850,0.002,46635.0,46632.0,0.5428]
[1649153600004,0.002,46635.0,46632.0,0.596393]
[1649153601744,0.002,46635.0,46632.0,0.649984]
[1649153601849,0.002,46635.0,46633.0,0.321196]
[1649153601946,0.002,46635.0,46634.0,1.13204041]
[1649153602145,0.002,46635.0,46634.0,1.17484041]
[1649153602446,0.002,46635.0,46634.0,1.1783749]
[1649153603101,0.002,46635.0,46634.0,1.5283749]
[1649153603211,0.00018397,46635.0,46634.0,1.5283749]
[1649153603302,0.97262,46650.0,46635.0,0.85]
[1649153603399,0.01072,46649.0,46637.0,0.10716]
[1649153603500,0.188,46650.0,46638.0,0.85358]
[1649153603603,0.17339815,46648.0,46638.0,0.90358]
[1649153603701,0.17339815,46648.0,46639.0,0.0428]
[1649153603802,0.00238776,46644.0,46639.0,0.0428]
[1649153604204,0.00238776,46644.0,46640.0,0.374778]
[1649153604304,0.00238776,46644.0,46640.0,0.107164]
[1649153604454,0.00238776,46644.0,46641.0,0.0428]
[1649153604552,0.00238776,46644.0,46641.0,0.5428]
[1649153604653,0.17339815,46652.0,46641.0,0.5428]
[1649153604820,0.31787859,46653.0,46643.0,0.103582]
[1649153604920,0.00059697,46645.0,46643.0,0.103582]
[1649153605016,0.00059697,46645.0,46644.0,0.0428]
[1649153605318,0.00059697,46645.0,46644.0,0.30900808]
[1649153605417,0.00059697,46645.0,46644.0,0.0428]
[1649153605867,0.17328054,46649.0,46644.0,0.0428]
[1649153606068,0.00059695,46647.0,46644.0,0.0428]
[1649153606572,0.00059695,46647.0,46645.0,0.3]
[1649153606770,0.00059695,46647.0,46645.0,0.35]
[1649153606870,0.00059695,46647.0,46645.0,0.0928]
[1649153607120,0.01072,46651.0,46645.0,0.0928]
[1649153607220,0.23532572,46650.0,46645.0,0.0928]
[1649153607321,0.00057611,46648.0,46645.0,0.0928]
[1649153608221,0.26070011,46652.0,46645.0,0.0928]
[1649153608323,0.26070011,46652.0,46646.0,0.00187359]
[1649153608562,0.00057611,46649.0,46646.0,0.00187359]
[1649153609254,0.00057611,46649.0,46644.0,1.32917599]
[1649153609405,0.00057611,46649.0,46645.0,0.25706787]
[1649153609505,0.49783067,46652.0,46644.0,1.32917599]
[1649153609607,0.01072,46651.0,46644.0,1.32917599]
[1649153609705,0.00057611,46649.0,46644.0,1.32917599]
[1649153609808,0.17328054,46648.0,46643.0,0.00186261]
[1649153610008,0.00057611,46649.0,46643.0,0.00186261]
[1649153610009,0.17328054,46645.0,46643.0,0.00186261]
[1649153610406,0.17328054,46645.0,46641.0,0.50176792]
[1649153610407,0.82898054,46645.0,46641.0,0.50176792]
[1649153610509,0.17328054,46642.0,46641.0,0.50176792]
[1649153610758,0.01328054,46643.0,46641.0,0.50176792]
[1649153610955,0.31479377,46645.0,46641.0,0.50176792]
[1649153611059,0.31479377,46645.0,46641.0,0.00176792]
[1649153611859,0.31423642,46645.0,46641.0,0.00176792]
[1649153612110,0.36479377,46645.0,46641.0,0.00176792]
[1649153612210,0.36479377,46645.0,46644.0,0.00168961]
[1649153613053,0.36423642,46645.0,46644.0,0.00168961]
[1649153614158,0.36423642,46645.0,46644.0,0.00167887]
[1649153614811,0.31423642,46645.0,46644.0,0.00167887]
[1649153616047,0.31423642,46645.0,46644.0,0.00506242]
[1649153619403,0.01072,46646.0,46644.0,0.00506242]
[1649153620372,0.27893188,46645.0,46644.0,0.00506242]
[1649153621021,0.27893188,46645.0,46644.0,0.21506242]
[1649153622323,0.01072,46646.0,46644.0,0.21506242]
[1649153622426,0.0018544,46645.0,46644.0,0.21338355]
[1649153623562,0.29418067,46645.0,46644.0,0.21338355]
[1649153624852,0.29418067,46645.0,46644.0,0.06706766]
[1649153626906,0.29232627,46645.0,46644.0,0.06884994]
[1649153627751,0.43595178,46645.0,46644.0,0.06884994]
[1649153629105,0.4382693,46645.0,46644.0,0.06884994]
[1649153631573,0.29464379,46645.0,46644.0,0.06884994]
[1649153632572,0.43830316,46645.0,46644.0,0.06884994]
[1649153636564,0.29464379,46645.0,46644.0,0.06884994]
[1649153637115,0.97122081,46645.0,46644.0,0.06884994]
[1649153637517,1.29057349,46645.0,46644.0,0.06884994]
[1649153637722,1.11483068,46645.0,46644.0,0.06884994]
[1649153638607,1.29074378,46645.0,46644.0,0.06884994]
[1649153639257,1.29074378,46645.0,46644.0,0.00178228]
[1649153639358,1.29074378,46645.0,46642.0,0.00201048]
[1649153639359,1.29074378,46645.0,46639.0,0.01443262]
[1649153639458,0.85480764,46645.0,46639.0,0.01443262]
[1649153639712,0.67889454,46645.0,46644.0,0.0043423]
[1649153641064,0.89857305,46645.0,46644.0,0.0043423]
[1649153641360,0.89798063,46645.0,46644.0,0.00217148]
[1649153641462,0.82191441,46645.0,46644.0,0.00217148]
[1649153641661,1.04159292,46645.0,46644.0,0.00217148]
[1649153641864,0.82191441,46645.0,46644.0,0.00217148]
[1649153643457,1.04012949,46645.0,46644.0,0.00179115]
[1649153644309,0.8965172,46645.0,46644.0,0.00179115]
[1649153645410,0.8965172,46645.0,46644.0,0.21179115]
[1649153645510,0.8965172,46645.0,46644.0,0.21]
[1649153646401,1.04011395,46645.0,46644.0,0.21]
[1649153646802,0.82017377,46645.0,46644.0,0.21]
[1649153647105,1.04014533,46645.0,46644.0,0.21]
[1649153647606,1.04014533,46645.0,46644.0,0.21358281]
[1649153647957,0.82017377,46645.0,46644.0,0.21358281]
[1649153648158,1.04015809,46645.0,46644.0,0.21358281]
[1649153649260,0.82017377,46645.0,46644.0,0.21358281]
[1649153649362,0.67657702,46645.0,46644.0,0.21358281]
[1649153649909,0.89656134,46645.0,46644.0,0.21358281]
[1649153651416,0.89656134,46645.0,46644.0,0.21179115]
[1649153652619,0.67657702,46645.0,46644.0,0.21179115]
[1649153653119,0.67657702,46645.0,46644.0,0.51179115]
[1649153653224,0.67657702,46645.0,46644.0,0.21179115]
[1649153653320,0.67657702,46645.0,46644.0,0.51179115]
[1649153653580,0.67657702,46645.0,46644.0,0.21179115]
[1649153653581,0.85260215,46645.0,46644.0,0.21179115]
[1649153653888,0.85260215,46645.0,46644.0,0.25459115]
[1649153653983,0.67657702,46645.0,46644.0,0.25459115]
[1649153654834,0.85260215,46645.0,46644.0,0.25459115]
[1649153655132,0.67657702,46645.0,46644.0,0.25459115]
[1649153656185,0.67657702,46645.0,46644.0,0.75459115]
[1649153656436,0.85260215,46645.0,46644.0,0.75459115]
[1649153657138,0.67657702,46645.0,46644.0,0.75459115]
[1649153658321,0.67657702,46645.0,46644.0,0.71179115]
[1649153658471,0.85260215,46645.0,46644.0,0.71179115]
[1649153659019,0.67657702,46645.0,46644.0,0.71179115]
[1649153659119,0.85256827,46645.0,46644.0,0.71179115]
[1649153659470,0.67657702,46645.0,46644.0,1.21179115]
[1649153659574,0.67657702,46645.0,46644.0,1.54383016]
[1649153659671,0.67657702,46645.0,46644.0,1.21179115]
[1649153659771,0.67657702,46645.0,46644.0,0.91179115]
[1649153660273,0.67657702,46645.0,46644.0,1.08809791]
[1649153660369,0.67657702,46645.0,46644.0,0.91179115]
[1649153660370,0.67069629,46645.0,46644.0,0.91179115]
[1649153660570,0.67069629,46645.0,46644.0,1.23298715]
[1649153660972,0.67069629,46645.0,46644.0,1.24383028]
[1649153661114,0.67069629,46645.0,46644.0,0.91179115]
[1649153661513,0.67069629,46645.0,46644.0,1.23298715]
[1649153661615,0.67069629,46645.0,46644.0,0.91179115]
[1649153661712,0.67069629,46645.0,46644.0,1.53298715]
[1649153661814,0.67069629,46645.0,46644.0,1.21179115]
[1649153662013,0.67069629,46645.0,46644.0,1.22263393]
[1649153662113,0.67069629,46645.0,46644.0,1.54382993]
[1649153662215,0.67069629,46645.0,46644.0,1.22263393]
[1649153662315,0.67069629,46645.0,46644.0,1.54382993]
[1649153662416,0.67069629,46645.0,46644.0,1.22263393]
[1649153662715,0.67069629,46645.0,46644.0,1.54382993]
[1649153662914,0.67069629,46645.0,46644.0,1.22263393]
[1649153663216,0.67069629,46645.0,46644.0,1.54382993]
[1649153663568,0.67069629,46645.0,46644.0,1.22263393]
[1649153663672,0.67069629,46645.0,46644.0,0.91179115]
[1649153663970,0.67069629,46645.0,46644.0,1.23298715]
[1649153664468,0.66569629,46645.0,46644.0,1.23298715]
[1649153666164,0.66569629,46645.0,46644.0,1.3463842]
[1649153666264,0.66569629,46645.0,46644.0,0.92263393]
[1649153666364,0.66569629,46645.0,46644.0,1.54382993]
[1649153666466,0.66569629,46645.0,46644.0,1.22263393]
[1649153666664,0.66569629,46645.0,46644.0,1.54382993]
[1649153666768,0.66569629,46645.0,46644.0,1.21179115]
[1649153666966,0.66569629,46645.0,46644.0,1.53298715]
[1649153667115,0.66569629,46645.0,46644.0,1.3463842]
[1649153667216,0.66569629,46645.0,46644.0,1.24383005]
[1649153667922,0.66569629,46645.0,46644.0,1.24382993]
[1649153668419,0.66569629,46645.0,46644.0,0.91179115]
[1649153668580,0.66569629,46645.0,46644.0,1.0251882]
[1649153668665,0.66569629,46645.0,46644.0,1.3463842]
[1649153669314,0.66569629,46645.0,46644.0,1.0251882]
[1649153669415,0.19533946,46645.0,46644.0,1.0251882]
[1649153670869,0.19533946,46645.0,46644.0,0.5251882]
[1649153672173,0.19533946,46645.0,46644.0,0.3251882]
[1649153677230,0.19533946,46645.0,46644.0,0.6251882]
[1649153677530,0.19533946,46645.0,46644.0,0.51179115]
[1649153677630,0.19533946,46645.0,46644.0,0.52263381]
[1649153680118,0.19533946,46645.0,46644.0,0.22263381]
[1649153681169,0.19533946,46645.0,46644.0,0.52263381]
[1649153682316,0.19533946,46645.0,46644.0,0.22263381]
[1649153684662,0.19533946,46645.0,46644.0,0.21179115]
[1649153686164,0.24533946,46645.0,46644.0,0.21179115]
[1649153688105,0.24533946,46645.0,46644.0,0.21356258]
[1649153690409,0.24533946,46645.0,46644.0,0.21535382]
[1649153693278,0.19533946,46645.0,46644.0,0.21535382]
[1649153693680,0.19533946,46645.0,46644.0,0.21525485]
[1649153699394,0.51423848,46649.0,46648.0,0.2744536]
[1649153699497,0.50351848,46649.0,46648.0,0.2744536]
[1649153699595,0.55351848,46649.0,46648.0,0.2744536]
[1649153700347,0.33352941,46649.0,46648.0,0.2744536]
[1649153701452,0.55347512,46649.0,46648.0,0.2744536]
[1649153701954,0.33352941,46649.0,46648.0,0.2744536]
[1649153702052,0.55347512,46649.0,46648.0,0.2744536]
[1649153702326,0.26994571,46649.0,46648.0,0.2744536]
[1649153702423,0.27211885,46649.0,46648.0,0.27634143]
[1649153702521,0.05217314,46649.0,46648.0,0.27634143]
[1649153702722,0.00217314,46649.0,46648.0,0.27634143]
[1649153704774,0.00059746,46651.0,46648.0,0.27634143]
[1649153705677,0.00218615,46652.0,46648.0,0.27634143]
[1649153705777,0.22213186,46652.0,46648.0,0.27634143]
[1649153705876,0.22271036,46652.0,46648.0,0.27634143]
[1649153706416,0.01072,46651.0,46648.0,0.27634143]
[1649153706868,0.0021827,46649.0,46648.0,0.27634143]
[1649153707767,0.0021827,46649.0,46648.0,0.57634143]
[1649153707968,0.0021827,46649.0,46648.0,0.27634143]
[1649153709021,0.0021827,46649.0,46648.0,0.2744536]
[1649153709222,0.2752446,46649.0,46648.0,0.74255971]
[1649153711169,0.2752446,46649.0,46648.0,0.74444754]
[1649153711675,0.2752446,46649.0,46648.0,1.04444754]
[1649153711921,0.2752446,46649.0,46648.0,0.74444754]
[1649153714876,0.2752446,46649.0,46648.0,1.04444754]
[1649153715175,0.2752446,46649.0,46648.0,0.74444754]
[1649153716375,0.2752446,46649.0,46648.0,0.98085874]
[1649153716976,0.2752446,46649.0,46648.0,0.74444754]
[1649153717423,0.2730619,46649.0,46648.0,0.74444754]
[1649153717972,0.2730619,46649.0,46648.0,1.03800891]
[1649153718625,0.2730619,46649.0,46648.0,0.74444754]
[1649153718725,0.31764615,46649.0,46648.0,0.74444754]
[1649153718929,0.61764615,46649.0,46648.0,0.74444754]
[1649153719728,2.90343123,46649.0,46648.0,0.74444754]
[1649153719831,2.94623123,46649.0,46648.0,0.74444754]
[1649153720028,2.95695123,46649.0,46648.0,0.74444754]
[1649153720329,3.01355418,46649.0,46648.0,0.74444754]
[1649153720429,0.72476415,46649.0,46648.0,0.74444754]
[1649153720529,0.37116615,46649.0,46648.0,0.74444754]
[1649153720630,0.36044615,46649.0,46648.0,0.74444754]
[1649153720735,0.2018294,46649.0,46648.0,0.74444754]
[1649153721169,0.13653095,46649.0,46648.0,0.74444754]
[1649153721419,0.2018294,46649.0,46648.0,0.74444754]
[1649153721925,0.2037216,46649.0,46648.0,0.74444754]
[1649153722121,0.2537216,46649.0,46648.0,0.74444754]
[1649153723223,0.2537216,46649.0,46648.0,1.04444754]
[1649153723328,0.2037216,46649.0,46648.0,1.04444754]
[1649153723774,0.2037216,46649.0,46648.0,0.94444754]
[1649153723876,0.2037216,46649.0,46648.0,1.24444754]
[1649153723974,0.2037216,46649.0,46648.0,0.94444754]
[1649153724275,0.2037216,46649.0,46648.0,0.94502569]
[1649153725530,0.2037216,46649.0,46648.0,1.24502569]
[1649153726332,0.2037216,46649.0,46648.0,0.94502569]
[1649153726431,0.2037216,46649.0,46648.0,1.24502569]
[1649153726432,0.20611378,46649.0,46648.0,1.24502569]
[1649153726631,0.20611378,46649.0,46648.0,0.94502569]
[1649153728334,0.2018294,46649.0,46648.0,0.94502569]
[1649153728572,0.2018294,46649.0,46648.0,1.56622169]
[1649153728674,0.2018294,46649.0,46648.0,1.24502569]
[1649153729380,0.2018294,46649.0,46648.0,1.56622169]
[1649153729479,0.05557931,46660.0,46657.0,0.2499389]
[1649153729587,0.17595229,46659.0,46657.0,0.5499389]
[1649153729679,0.2315316,46660.0,46657.0,0.2499389]
[1649153729978,0.2315316,46660.0,46658.0,0.46810611]
[1649153730279,0.17595229,46659.0,46658.0,0.46810611]
[1649153730379,0.05557931,46660.0,46658.0,0.46810611]
[1649153730478,0.002,46660.0,46658.0,0.46810611]
[1649153732030,0.002,46660.0,46659.0,0.00201197]
[1649153732137,0.002,46660.0,46659.0,0.30201197]
[1649153732336,0.002,46660.0,46659.0,0.62320797]
[1649153732689,0.002,46660.0,46659.0,0.66600797]
[1649153732882,0.002,46660.0,46659.0,0.34481197]
[1649153732982,0.002,46660.0,46659.0,0.66600797]
[1649153733182,0.002,46660.0,46659.0,0.34481197]
[1649153733284,0.002,46660.0,46659.0,0.66600797]
[1649153733385,0.002,46660.0,46659.0,0.34481197]
[1649153734384,0.002,46660.0,46659.0,0.66600797]
[1649153734485,0.002,46660.0,46659.0,0.34481197]
[1649153735035,0.002,46660.0,46659.0,0.66600797]
[1649153735186,0.002,46660.0,46659.0,0.34481197]
[1649153735286,0.002,46660.0,46659.0,0.81291808]
[1649153736128,0.002,46660.0,46659.0,1.13411408]
[1649153736526,0.002,46660.0,46659.0,1.63411408]
[1649153736826,0.002,46660.0,46659.0,1.83411408]
[1649153739821,0.002,46660.0,46659.0,1.84495523]
[1649153741371,0.002,46660.0,46659.0,1.52375923]
[1649153742272,0.00167579,46660.0,46659.0,1.52375923]
[1649153742375,0.00167579,46660.0,46659.0,1.84495523]
[1649153743569,0.00167579,46660.0,46659.0,2.05495523]
[1649153745125,0.00366546,46664.0,46661.0,0.053556]
[1649153745228,0.002,46675.0,46663.0,0.2]
[1649153745328,0.002,46675.0,46664.0,0.321196]
[1649153745426,0.002,46675.0,46666.0,0.321196]
[1649153745625,0.002,46675.0,46666.0,0.35126197]
[1649153745824,0.002,46675.0,46671.0,0.2]
[1649153745929,0.002,46675.0,46673.0,0.27773715]
[1649153746327,0.002,46675.0,46672.0,0.46585388]
[1649153748077,0.002,46675.0,46674.0,0.23749707]
[1649153748477,0.002,46675.0,46674.0,0.53749707]
[1649153749078,0.002,46675.0,46674.0,0.30176399]
[1649153749779,0.002,46675.0,46674.0,0.00176399]
[1649153749884,0.002,46675.0,46671.0,0.5]
[1649153749885,0.002,46673.0,46671.0,0.49695787]
[1649153749987,0.002,46673.0,46670.0,0.46810611]
[1649153749988,0.25,46672.0,46670.0,0.46810611]
[1649153750183,0.25,46672.0,46670.0,0.7755322]
[1649153750383,0.25,46672.0,46670.0,0.76810611]
[1649153750732,0.05615756,46673.0,46670.0,0.76810611]
[1649153750733,0.30615756,46673.0,46670.0,0.76810611]
[1649153750933,0.30615756,46673.0,46670.0,0.3]
[1649153751171,0.30615756,46673.0,46672.0,0.46810611]
[1649153751275,0.30615756,46673.0,46672.0,0.15154711]
[1649153751373,0.35971556,46673.0,46672.0,0.15154711]
[1649153751471,0.35911861,46673.0,46672.0,0.15154711]
[1649153753074,0.10911861,46673.0,46672.0,0.15154711]
[1649153753175,0.35911861,46673.0,46672.0,0.15154711]
[1649153753575,0.10911861,46673.0,46672.0,0.15154711]
[1649153753675,0.35911861,46673.0,46672.0,0.15154711]
[1649153754125,0.10911861,46673.0,46672.0,0.15154711]
[1649153754224,0.35911861,46673.0,46672.0,0.15154711]
[1649153754327,0.35911861,46673.0,46672.0,0.47274311]
[1649153754426,0.35911861,46673.0,46672.0,0.67180969]
[1649153754526,0.35911861,46673.0,46672.0,0.56061369]
[1649153754729,0.10911861,46673.0,46672.0,0.56061369]
[1649153754873,0.35911861,46673.0,46672.0,0.8836876]
[1649153754975,0.305558,46673.0,46672.0,0.8836876]
[1649153755327,0.305558,46673.0,46672.0,0.5624916]
[1649153755472,0.305558,46673.0,46672.0,0.8836876]
[1649153755572,0.055558,46673.0,46672.0,0.8836876]
[1649153755673,0.305558,46673.0,46672.0,0.8836876]
[1649153756175,0.305558,46673.0,46672.0,0.73214049]
[1649153756324,0.055558,46673.0,46672.0,0.73214049]
[1649153756426,0.305558,46673.0,46672.0,0.73214049]
[1649153756524,0.305558,46673.0,46672.0,1.1836876]
[1649153757331,0.055558,46673.0,46672.0,1.1836876]
[1649153757481,0.305558,46673.0,46672.0,1.1836876]
[1649153757880,0.305558,46673.0,46672.0,1.6836876]
[1649153757980,0.305558,46673.0,46672.0,1.3624916]
[1649153758280,0.055558,46673.0,46672.0,1.3624916]
[1649153758382,0.055558,46673.0,46672.0,1.6836876]
[1649153758923,0.055558,46673.0,46672.0,1.3624916]
[1649153759021,0.055558,46673.0,46672.0,0.7568586]
[1649153759423,0.055558,46673.0,46672.0,0.93040393]
[1649153759522,0.00071522,46675.0,46671.0,0.30373155]
[1649153759624,0.00071522,46675.0,46671.0,0.00373155]
[1649153759826,0.00015555,46675.0,46671.0,0.00373155]
[1649153760124,0.00071521,46675.0,46671.0,0.00373155]
[1649153760577,0.00071521,46675.0,46672.0,0.00171324]
[1649153760678,0.053558,46673.0,46672.0,0.00171324]
[1649153760776,0.053558,46673.0,46672.0,0.50608663]
[1649153760875,0.053558,46673.0,46672.0,0.18489063]
[1649153761177,0.053558,46673.0,46672.0,0.50608663]
[1649153761379,0.053558,46673.0,46672.0,0.18489063]
[1649153761579,0.053558,46673.0,46672.0,0.50608663]
[1649153762179,0.053558,46673.0,46672.0,0.80608663]
[1649153762424,0.053558,46673.0,46672.0,0.80437339]
[1649153763379,0.053558,46673.0,46672.0,1.01437339]
[1649153763877,0.053558,46673.0,46672.0,0.831196]
[1649153764532,0.053558,46673.0,46672.0,0.83320213]
[1649153764831,0.053458,46673.0,46672.0,0.83320213]
[1649153765834,0.053458,46673.0,46672.0,0.53320213]
[1649153765934,0.053458,46673.0,46672.0,1.00616159]
[1649153766072,0.053458,46673.0,46672.0,0.70616159]
[1649153766174,0.053458,46673.0,46672.0,1.00616159]
[1649153766519,0.053458,46673.0,46672.0,1.00815106]
[1649153767220,0.053458,46673.0,46672.0,0.70815106]
[1649153767421,0.053458,46673.0,46672.0,1.00815106]
[1649153767521,0.053458,46673.0,46672.0,0.70815106]
[1649153767622,0.053458,46673.0,46672.0,1.00815106]
[1649153767722,0.053458,46673.0,46672.0,0.70815106]
[1649153767822,0.053458,46673.0,46672.0,1.00815106]
[1649153767976,0.053458,46673.0,46672.0,0.70815106]
[1649153768072,0.053458,46673.0,46672.0,1.00815106]
[1649153768474,0.053458,46673.0,46672.0,0.70815106]
[1649153768573,0.053458,46673.0,46672.0,1.00815106]
[1649153768672,0.053458,46673.0,46672.0,0.70815106]
[1649153768776,0.053458,46673.0,46672.0,0.2139956]
[1649153769274,0.053458,46673.0,46672.0,0.5351916]
[1649153769821,0.053458,46673.0,46672.0,0.2139956]
[1649153769919,0.053458,46673.0,46672.0,0.5351916]
[1649153770120,0.053458,46673.0,46672.0,0.8351916]
[1649153770620,0.053458,46673.0,46672.0,0.53320213]
[1649153771073,0.053458,46673.0,46672.0,0.83320213]
[1649153772927,0.053458,46673.0,46672.0,1.03016]
[1649153773981,0.053458,46673.0,46672.0,0.83320213]
[1649153774085,0.053458,46673.0,46672.0,1.33320213]
[1649153774281,0.053458,46673.0,46672.0,0.71200613]
[1649153774382,0.053458,46673.0,46672.0,1.03320213]
[1649153775181,0.053458,46673.0,46672.0,0.53320213]
[1649153775536,0.053458,46673.0,46672.0,0.83320213]
[1649153777033,0.053458,46673.0,46672.0,0.53320213]
[1649153779479,0.053458,46673.0,46672.0,0.83320213]
[1649153781216,0.053458,46673.0,46672.0,0.53320213]
[1649153781325,0.053458,46673.0,46672.0,0.21200613]
[1649153781470,0.053458,46673.0,46671.0,0.00198947]
[1649153781665,0.103458,46673.0,46671.0,0.00198947]
[1649153781766,0.053458,46673.0,46671.0,0.00198947]
[1649153781915,0.053458,46673.0,46667.0,0.5005743]
[1649153782320,0.29052557,46669.0,46667.0,0.5005743]
[1649153782418,0.39767757,46669.0,46667.0,0.5005743]
[1649153782516,0.39767757,46669.0,46667.0,0.1807683]
[1649153782618,0.44767757,46669.0,46667.0,0.1807683]
[1649153782717,0.44767757,46669.0,46667.0,0.180194]
[1649153782818,0.10715165,46668.0,46666.0,0.0005566]
[1649153783220,0.05,46667.0,46666.0,0.0005566]
[1649153783319,0.28680534,46667.0,46666.0,0.0005566]
[1649153783420,0.05,46667.0,46666.0,0.0005566]
[1649153783675,1.2,46667.0,46661.0,0.00326891]
[1649153783769,0.05358,46666.0,46662.0,0.321196]
[1649153783867,0.053579,46665.0,46662.0,0.321196]
[1649153783968,0.15715398,46665.0,46662.0,0.321196]
[1649153784067,0.15715398,46665.0,46664.0,0.321196]
[1649153784168,0.15715398,46665.0,46662.0,0.321196]
[1649153785026,0.15715398,46665.0,46661.0,0.00326891]
[1649153785225,0.15715398,46665.0,46662.0,0.321196]
[1649153785528,0.15715398,46665.0,46661.0,0.00326891]
[1649153786279,0.15715398,46665.0,46662.0,0.321196]
[1649153786383,0.15715398,46665.0,46661.0,0.00326891]
[1649153786480,0.15715398,46665.0,46661.0,0.00363901]
[1649153786679,0.16786398,46665.0,46661.0,0.00363901]
[1649153786879,0.16786398,46665.0,46661.0,0.02363901]
[1649153787431,0.16786398,46665.0,46661.0,0.02326891]
[1649153787633,0.00148366,46664.0,46663.0,0.00282897]
[1649153789222,0.00148366,46664.0,46663.0,0.32402497]
[1649153789424,0.00148366,46664.0,46663.0,0.321196]
[1649153789521,0.05357007,46668.0,46663.0,0.321196]
[1649153789522,0.216309,46693.0,46670.0,0.19300997]
[1649153789670,0.210726,46672.0,46670.0,0.19300997]
[1649153789771,0.1,46671.0,46670.0,0.19300997]
[1649153790070,0.35585128,46671.0,46670.0,0.19300997]
[1649153790370,1.01155128,46671.0,46670.0,0.19300997]
[1649153791224,1.01155128,46671.0,46670.0,0.19580314]
[1649153792072,0.35585128,46671.0,46670.0,0.19580314]
[1649153792173,0.25585128,46671.0,46670.0,0.19580314]
[1649153792330,0.35585128,46671.0,46670.0,0.19580314]
[1649153792424,0.35585128,46671.0,46662.0,0.00279509]
[1649153792425,0.25799973,46667.0,46662.0,0.00279509]